[Event "Titled Tuesday Blitz January 31 Late 2023"]
[White "Fernandez Siles, Luis"]
[Black "Papayan, Oleg"]
[WhiteFideId "2209420"]
[BlackFideId "4193911"]
[WhiteElo "2218"]
[BlackElo "2253"]
[Result "0-1"]
[Round "10"]
[TimeControl "180+2"]
[Date "2023.01.31"]
[WhiteClock "0:00:14"]
[BlackClock "0:00:03"]

1. d4 {[%clk 0:03:00]}  Nf6 {[%clk 0:02:58]} 2. c4 {[%clk 0:03:00]}  e6 {[%clk 0:02:58]} 3. Nc3 {[%clk 0:03:00]}  Bb4 {[%clk 0:02:59]} 4. e3 {[%clk 0:03:01]}  O-O {[%clk 0:02:59]} 5. Ne2 {[%clk 0:03:01]}  c6 {[%clk 0:02:59]} 6. a3 {[%clk 0:03:01]}  Ba5 {[%clk 0:02:59]} 7. b4 {[%clk 0:02:54]}  Bc7 {[%clk 0:03:00]} 8. e4 {[%clk 0:02:53]}  d5 {[%clk 0:03:00]} 9. e5 {[%clk 0:02:48]}  Nfd7 {[%clk 0:03:00]} 10. Ng3 {[%clk 0:02:44]}  a5 {[%clk 0:02:57]} 11. Bd2 {[%clk 0:02:10]}  axb4 {[%clk 0:02:49]} 12. axb4 {[%clk 0:02:11]}  Rxa1 {[%clk 0:02:49]} 13. Qxa1 {[%clk 0:02:12]}  Na6 {[%clk 0:02:03]} 14. b5 {[%clk 0:02:08]}  Nb4 {[%clk 0:01:47]} 15. Qb1 {[%clk 0:01:58]}  Ba5 {[%clk 0:01:30]} 16. c5 {[%clk 0:01:30]}  b6 {[%clk 0:00:59]} 17. bxc6 {[%clk 0:01:23]}  Nxc6 {[%clk 0:00:58]} 18. cxb6 {[%clk 0:01:11]}  Qxb6 {[%clk 0:00:50]} 19. Qxb6 {[%clk 0:01:11]}  Bxb6 {[%clk 0:00:51]} 20. f4 {[%clk 0:00:59]}  Nxd4 {[%clk 0:00:43]} 21. Bd3 {[%clk 0:00:57]}  Nc5 {[%clk 0:00:43]} 22. Bb1 {[%clk 0:00:56]}  Ba6 {[%clk 0:00:41]} 23. h4 {[%clk 0:00:54]}  Nd3+ {[%clk 0:00:38]} 24. Bxd3 {[%clk 0:00:54]}  Bxd3 {[%clk 0:00:39]} 25. h5 {[%clk 0:00:53]}  h6 {[%clk 0:00:38]} 26. Nge2 {[%clk 0:00:36]}  Nc2+ {[%clk 0:00:29]} 27. Kd1 {[%clk 0:00:32]}  Ra8 {[%clk 0:00:25]} 28. Rh3 {[%clk 0:00:30]}  Bf5 {[%clk 0:00:17]} 29. Rg3 {[%clk 0:00:19]}  Ra1+ {[%clk 0:00:12]} 30. Nc1 {[%clk 0:00:19]}  Nd4 {[%clk 0:00:07]} 31. Ne2 {[%clk 0:00:15]}  Nxe2 {[%clk 0:00:03]} 32. Kxe2 {[%clk 0:00:16]}  Ra8 {[%clk 0:00:02]} 33. Rb3 {[%clk 0:00:16]}  Bd8 {[%clk 0:00:01]} 34. Kf3 {[%clk 0:00:15]}  Be4+ {[%clk 0:00:02]} 35. Kf2 {[%clk 0:00:15]}  Bh4+ {[%clk 0:00:02]} 36. g3 {[%clk 0:00:15]}  Be7 {[%clk 0:00:02]} 37. g4 {[%clk 0:00:16]}  Rc8 {[%clk 0:00:03]} 38. Ne2 {[%clk 0:00:14]}  Rc2 {[%clk 0:00:03]} 0-1


[Site "https://www.chess.com"]

[Event "Titled Tuesday Blitz January 31 Late 2023"]
[White "Bambino Filho, Antonio Carlos"]
[Black "Bulgurlu, Okan"]
[WhiteFideId "2113163"]
[BlackFideId "6352316"]
[WhiteElo "2144"]
[BlackElo "1908"]
[Result "1-0"]
[Round "10"]
[TimeControl "180+2"]
[Date "2023.01.31"]
[WhiteClock "0:00:13"]
[BlackClock "0:00:07"]

1. d4 {[%clk 0:03:00]}  Nf6 {[%clk 0:02:58]} 2. c4 {[%clk 0:03:00]}  e6 {[%clk 0:02:56]} 3. Nc3 {[%clk 0:03:00]}  b6 {[%clk 0:02:57]} 4. Qd2 {[%clk 0:03:00]}  Bb7 {[%clk 0:02:58]} 5. f3 {[%clk 0:03:00]}  Be7 {[%clk 0:02:57]} 6. e4 {[%clk 0:02:59]}  d6 {[%clk 0:02:57]} 7. Bd3 {[%clk 0:03:00]}  Nbd7 {[%clk 0:02:57]} 8. Nge2 {[%clk 0:02:59]}  O-O {[%clk 0:02:55]} 9. O-O {[%clk 0:03:00]}  a6 {[%clk 0:02:52]} 10. f4 {[%clk 0:02:49]}  e5 {[%clk 0:02:49]} 11. fxe5 {[%clk 0:02:48]}  dxe5 {[%clk 0:02:49]} 12. d5 {[%clk 0:02:48]}  Bc5+ {[%clk 0:02:46]} 13. Kh1 {[%clk 0:02:48]}  Ng4 {[%clk 0:02:46]} 14. Nd1 {[%clk 0:02:34]}  Qh4 {[%clk 0:02:25]} 15. h3 {[%clk 0:02:33]}  f5 {[%clk 0:02:25]} 16. exf5 {[%clk 0:02:20]}  Ndf6 {[%clk 0:01:52]} 17. Qg5 {[%clk 0:02:18]}  Qxg5 {[%clk 0:01:33]} 18. Bxg5 {[%clk 0:02:18]}  e4 {[%clk 0:01:33]} 19. Bc2 {[%clk 0:02:08]}  Ne5 {[%clk 0:01:33]} 20. b3 {[%clk 0:02:03]}  Rae8 {[%clk 0:01:19]} 21. Be3 {[%clk 0:01:54]}  Nd3 {[%clk 0:01:07]} 22. Nf4 {[%clk 0:01:43]}  Nxf4 {[%clk 0:00:47]} 23. Rxf4 {[%clk 0:01:44]}  Bd6 {[%clk 0:00:44]} 24. Rf2 {[%clk 0:01:25]}  Nh5 {[%clk 0:00:42]} 25. g4 {[%clk 0:01:18]}  Ng3+ {[%clk 0:00:29]} 26. Kg2 {[%clk 0:01:18]}  g6 {[%clk 0:00:29]} 27. Bf4 {[%clk 0:01:10]}  Bxf4 {[%clk 0:00:28]} 28. Rxf4 {[%clk 0:01:04]}  Ne2 {[%clk 0:00:28]} 29. Rxe4 {[%clk 0:00:58]}  gxf5 {[%clk 0:00:19]} 30. Rxe8 {[%clk 0:00:53]}  Rxe8 {[%clk 0:00:20]} 31. Bxf5 {[%clk 0:00:54]}  Nf4+ {[%clk 0:00:21]} 32. Kf3 {[%clk 0:00:54]}  Nxh3 {[%clk 0:00:21]} 33. Nc3 {[%clk 0:00:49]}  Ng5+ {[%clk 0:00:22]} 34. Kf4 {[%clk 0:00:49]}  h6 {[%clk 0:00:21]} 35. Ne4 {[%clk 0:00:43]}  Nxe4 {[%clk 0:00:19]} 36. Bxe4 {[%clk 0:00:44]}  Bc8 {[%clk 0:00:19]} 37. Re1 {[%clk 0:00:41]}  Kg7 {[%clk 0:00:19]} 38. Re3 {[%clk 0:00:39]}  Bd7 {[%clk 0:00:18]} 39. Bf3 {[%clk 0:00:31]}  Rf8+ {[%clk 0:00:12]} 40. Kg3 {[%clk 0:00:32]}  Kf6 {[%clk 0:00:13]} 41. Be4 {[%clk 0:00:30]}  Rg8 {[%clk 0:00:12]} 42. Rf3+ {[%clk 0:00:19]}  Ke5 {[%clk 0:00:12]} 43. Bf5 {[%clk 0:00:19]}  Be8 {[%clk 0:00:06]} 44. Re3+ {[%clk 0:00:20]}  Kd4 {[%clk 0:00:06]} 45. Re7 {[%clk 0:00:15]}  c6 {[%clk 0:00:03]} 46. d6 {[%clk 0:00:15]}  h5 {[%clk 0:00:02]} 47. d7 {[%clk 0:00:15]}  Bxd7 {[%clk 0:00:02]} 48. Rxd7+ {[%clk 0:00:14]}  Kc3 {[%clk 0:00:03]} 49. Rd6 {[%clk 0:00:12]}  hxg4 {[%clk 0:00:03]} 50. Rxc6 {[%clk 0:00:12]}  b5 {[%clk 0:00:04]} 51. cxb5+ {[%clk 0:00:11]}  Kb2 {[%clk 0:00:04]} 52. bxa6 {[%clk 0:00:12]}  Kxa2 {[%clk 0:00:04]} 53. a7 {[%clk 0:00:12]}  Ra8 {[%clk 0:00:05]} 54. Rc7 {[%clk 0:00:13]}  Kxb3 {[%clk 0:00:05]} 55. Be4 {[%clk 0:00:13]}  Kb4 {[%clk 0:00:06]} 56. Bxa8 {[%clk 0:00:13]}  Kb5 {[%clk 0:00:06]} 57. Be4 {[%clk 0:00:13]}  Kb6 {[%clk 0:00:07]} 58. Rg7 {[%clk 0:00:13]} 1-0


[Site "https://www.chess.com"]

[Event "Titled Tuesday Blitz January 31 Late 2023"]
[White "Cruz, William Ferreira Da"]
[Black "Osmonbekov, Talaibek"]
[WhiteFideId "2118050"]
[BlackFideId "2017253"]
[WhiteElo "2216"]
[BlackElo "2137"]
[Result "1-0"]
[Round "10"]
[TimeControl "180+2"]
[Date "2023.01.31"]
[WhiteClock "0:01:07"]
[BlackClock "0:00:01"]

1. d4 {[%clk 0:02:49]}  e6 {[%clk 0:02:59]} 2. c4 {[%clk 0:02:48]}  f5 {[%clk 0:03:00]} 3. Nc3 {[%clk 0:02:48]}  Nf6 {[%clk 0:03:01]} 4. g3 {[%clk 0:02:48]}  Bb4 {[%clk 0:03:01]} 5. Bd2 {[%clk 0:02:48]}  O-O {[%clk 0:03:00]} 6. Bg2 {[%clk 0:02:48]}  d6 {[%clk 0:02:59]} 7. a3 {[%clk 0:02:43]}  Bxc3 {[%clk 0:02:58]} 8. Bxc3 {[%clk 0:02:43]}  Ne4 {[%clk 0:02:51]} 9. Qd3 {[%clk 0:02:42]}  Nxc3 {[%clk 0:02:49]} 10. Qxc3 {[%clk 0:02:43]}  Nc6 {[%clk 0:02:48]} 11. d5 {[%clk 0:02:41]}  Ne5 {[%clk 0:02:48]} 12. Nf3 {[%clk 0:02:40]}  Nxf3+ {[%clk 0:02:45]} 13. exf3 {[%clk 0:02:40]}  e5 {[%clk 0:02:45]} 14. O-O {[%clk 0:02:40]}  f4 {[%clk 0:02:45]} 15. c5 {[%clk 0:02:28]}  Bf5 {[%clk 0:02:37]} 16. Rac1 {[%clk 0:02:25]}  Rc8 {[%clk 0:02:31]} 17. Qb4 {[%clk 0:02:21]}  b6 {[%clk 0:02:30]} 18. c6 {[%clk 0:02:16]}  a5 {[%clk 0:02:19]} 19. Qc4 {[%clk 0:02:14]}  Qg5 {[%clk 0:02:16]} 20. b4 {[%clk 0:02:13]}  axb4 {[%clk 0:02:10]} 21. axb4 {[%clk 0:02:13]}  Qg6 {[%clk 0:02:07]} 22. Rfd1 {[%clk 0:02:08]}  Ra8 {[%clk 0:02:04]} 23. Ra1 {[%clk 0:02:07]}  h5 {[%clk 0:01:44]} 24. Qc3 {[%clk 0:02:01]}  h4 {[%clk 0:01:38]} 25. g4 {[%clk 0:02:01]}  Bc2 {[%clk 0:01:29]} 26. Rxa8 {[%clk 0:01:54]}  Bxd1 {[%clk 0:01:17]} 27. Rxf8+ {[%clk 0:01:52]}  Kxf8 {[%clk 0:01:17]} 28. Qa1 {[%clk 0:01:51]}  Qc2 {[%clk 0:01:12]} 29. Qa8+ {[%clk 0:01:37]}  Kf7 {[%clk 0:01:06]} 30. Qc8 {[%clk 0:01:34]}  Qc1 {[%clk 0:00:59]} 31. Qxc7+ {[%clk 0:01:33]}  Kg8 {[%clk 0:00:59]} 32. Qd8+ {[%clk 0:01:31]}  Kh7 {[%clk 0:00:58]} 33. Qxh4+ {[%clk 0:01:30]}  Kg6 {[%clk 0:00:57]} 34. h3 {[%clk 0:01:15]}  Bb3+ {[%clk 0:00:38]} 35. Kh2 {[%clk 0:01:15]}  Bxd5 {[%clk 0:00:39]} 36. Qh5+ {[%clk 0:01:14]}  Kf6 {[%clk 0:00:38]} 37. Qf5+ {[%clk 0:01:13]}  Ke7 {[%clk 0:00:38]} 38. Qd7+ {[%clk 0:01:11]}  Kf8 {[%clk 0:00:26]} 39. Qxd6+ {[%clk 0:01:11]}  Ke8 {[%clk 0:00:25]} 40. Qxd5 {[%clk 0:01:10]}  Qc3 {[%clk 0:00:22]} 41. Qd7+ {[%clk 0:01:09]}  Kf8 {[%clk 0:00:22]} 42. c7 {[%clk 0:01:09]}  Qc6 {[%clk 0:00:01]} 43. Qxc6 {[%clk 0:01:07]} 1-0


[Site "https://www.chess.com"]

[Event "Titled Tuesday Blitz January 31 Late 2023"]
[White "Sohier, Julien"]
[Black "EdmundPlayer"]
[WhiteFideId "645346"]
[WhiteElo "2214"]
[BlackElo "2313"]
[Result "1-0"]
[Round "10"]
[TimeControl "180+2"]
[Date "2023.01.31"]
[WhiteClock "0:00:02"]
[BlackClock "0:00:01"]

1. e4 {[%clk 0:03:00]}  e6 {[%clk 0:02:59]} 2. d4 {[%clk 0:03:00]}  d5 {[%clk 0:02:59]} 3. e5 {[%clk 0:03:00]}  c5 {[%clk 0:02:56]} 4. c3 {[%clk 0:03:01]}  Nc6 {[%clk 0:02:56]} 5. Nf3 {[%clk 0:03:02]}  Qb6 {[%clk 0:02:56]} 6. Bd3 {[%clk 0:03:00]}  cxd4 {[%clk 0:02:55]} 7. O-O {[%clk 0:02:59]}  Bd7 {[%clk 0:02:55]} 8. Re1 {[%clk 0:02:58]}  Nge7 {[%clk 0:02:55]} 9. h4 {[%clk 0:02:56]}  a6 {[%clk 0:02:54]} 10. Nbd2 {[%clk 0:02:45]}  Ng6 {[%clk 0:02:39]} 11. Nb3 {[%clk 0:02:01]}  Be7 {[%clk 0:02:27]} 12. g3 {[%clk 0:01:58]}  dxc3 {[%clk 0:02:26]} 13. bxc3 {[%clk 0:01:58]}  Nf8 {[%clk 0:02:18]} 14. c4 {[%clk 0:01:37]}  dxc4 {[%clk 0:01:47]} 15. Bxc4 {[%clk 0:01:32]}  h5 {[%clk 0:01:33]} 16. Be3 {[%clk 0:01:31]}  Qc7 {[%clk 0:01:23]} 17. Rc1 {[%clk 0:01:24]}  Ng6 {[%clk 0:01:21]} 18. Bc5 {[%clk 0:01:04]}  Bxc5 {[%clk 0:01:02]} 19. Nxc5 {[%clk 0:01:03]}  Rd8 {[%clk 0:00:58]} 20. Ne4 {[%clk 0:00:34]}  Kf8 {[%clk 0:00:45]} 21. Bb3 {[%clk 0:00:22]}  Be8 {[%clk 0:00:31]} 22. Nd6 {[%clk 0:00:19]}  Qe7 {[%clk 0:00:26]} 23. Qe2 {[%clk 0:00:15]}  Ngxe5 {[%clk 0:00:18]} 24. Nxe8 {[%clk 0:00:13]}  Nxf3+ {[%clk 0:00:18]} 25. Qxf3 {[%clk 0:00:14]}  Rxe8 {[%clk 0:00:14]} 26. Rxe6 {[%clk 0:00:13]}  Qd7 {[%clk 0:00:10]} 27. Rd1 {[%clk 0:00:10]}  Qc8 {[%clk 0:00:07]} 28. Rxe8+ {[%clk 0:00:08]}  Qxe8 {[%clk 0:00:08]} 29. Rd5 {[%clk 0:00:04]}  Rh6 {[%clk 0:00:08]} 30. Rf5 {[%clk 0:00:04]}  Nd8 {[%clk 0:00:07]} 31. Qf4 {[%clk 0:00:03]}  Rc6 {[%clk 0:00:04]} 32. Qb4+ {[%clk 0:00:03]}  Kg8 {[%clk 0:00:03]} 33. Qd2 {[%clk 0:00:02]}  Ne6 {[%clk 0:00:02]} 34. Rd5 {[%clk 0:00:02]}  b5 {[%clk 0:00:01]} 35. Rd6 {[%clk 0:00:02]}  Rxd6 {[%clk 0:00:01]} 36. Qxd6 {[%clk 0:00:03]}  Qc8 {[%clk 0:00:01]} 37. Kg2 {[%clk 0:00:02]}  Qb7+ {[%clk 0:00:01]} 38. Kh2 {[%clk 0:00:03]}  Qc8 {[%clk 0:00:01]} 39. Qb6 {[%clk 0:00:02]} 1-0


[Site "https://www.chess.com"]

[Event "Titled Tuesday Blitz January 31 Late 2023"]
[White "Sanchez, Robert"]
[Black "Good, Daniel"]
[WhiteFideId "2034360"]
[BlackFideId "1302388"]
[WhiteElo "1966"]
[BlackElo "2141"]
[Result "1-0"]
[Round "10"]
[TimeControl "180+2"]
[Date "2023.01.31"]
[WhiteClock "0:01:56"]
[BlackClock "0:01:24"]

1. e4 {[%clk 0:03:00]}  e5 {[%clk 0:02:57]} 2. Nf3 {[%clk 0:03:00]}  Nc6 {[%clk 0:02:57]} 3. Bb5 {[%clk 0:03:01]}  Nf6 {[%clk 0:02:57]} 4. d3 {[%clk 0:03:00]}  Bc5 {[%clk 0:02:56]} 5. Nc3 {[%clk 0:02:58]}  O-O {[%clk 0:02:51]} 6. h3 {[%clk 0:02:57]}  Nd4 {[%clk 0:02:39]} 7. Nxd4 {[%clk 0:02:57]}  Bxd4 {[%clk 0:02:35]} 8. O-O {[%clk 0:02:57]}  d5 {[%clk 0:02:33]} 9. Bg5 {[%clk 0:02:53]}  Bxc3 {[%clk 0:02:32]} 10. bxc3 {[%clk 0:02:53]}  dxe4 {[%clk 0:02:32]} 11. Bxf6 {[%clk 0:02:46]}  Qxf6 {[%clk 0:02:33]} 12. dxe4 {[%clk 0:02:46]}  Qg6 {[%clk 0:02:31]} 13. Qf3 {[%clk 0:02:44]}  Qb6 {[%clk 0:02:21]} 14. Bc4 {[%clk 0:02:43]}  Be6 {[%clk 0:02:21]} 15. Bb3 {[%clk 0:02:42]}  Rad8 {[%clk 0:02:20]} 16. Rfd1 {[%clk 0:02:40]}  Qc6 {[%clk 0:02:17]} 17. Bd5 {[%clk 0:02:33]}  Bxd5 {[%clk 0:02:08]} 18. exd5 {[%clk 0:02:34]}  Qc4 {[%clk 0:02:07]} 19. Rab1 {[%clk 0:02:33]}  b6 {[%clk 0:02:03]} 20. Rb4 {[%clk 0:02:31]}  Qc5 {[%clk 0:02:02]} 21. Rg4 {[%clk 0:02:30]}  f5 {[%clk 0:02:01]} 22. Rg5 {[%clk 0:02:28]}  e4 {[%clk 0:01:52]} 23. Qf4 {[%clk 0:02:25]}  Rxd5 {[%clk 0:01:37]} 24. Rxd5 {[%clk 0:02:23]}  Qxd5 {[%clk 0:01:38]} 25. Qxc7 {[%clk 0:02:23]}  Qf7 {[%clk 0:01:38]} 26. Qf4 {[%clk 0:02:05]}  h6 {[%clk 0:01:32]} 27. Rg3 {[%clk 0:02:02]}  Qxa2 {[%clk 0:01:23]} 28. Qxh6 {[%clk 0:01:58]}  Qa1+ {[%clk 0:01:23]} 29. Kh2 {[%clk 0:01:57]}  Qxc3 {[%clk 0:01:24]} 30. Qe6+ {[%clk 0:01:56]} 1-0


[Site "https://www.chess.com"]

[Event "Titled Tuesday Blitz January 31 Late 2023"]
[White "Fiorito, Francisco"]
[Black "Garrido, Denis"]
[WhiteFideId "180165"]
[BlackFideId "601217"]
[WhiteElo "2305"]
[BlackElo "2205"]
[Result "1-0"]
[Round "10"]
[TimeControl "180+2"]
[Date "2023.01.31"]
[WhiteClock "0:01:53"]
[BlackClock "0:00:42"]

1. Nf3 {[%clk 0:03:00]}  Nf6 {[%clk 0:02:59]} 2. g3 {[%clk 0:02:59]}  g6 {[%clk 0:03:00]} 3. Bg2 {[%clk 0:02:59]}  Bg7 {[%clk 0:03:01]} 4. O-O {[%clk 0:02:58]}  O-O {[%clk 0:03:01]} 5. c4 {[%clk 0:02:59]}  d6 {[%clk 0:03:01]} 6. d4 {[%clk 0:02:59]}  c6 {[%clk 0:03:01]} 7. Nc3 {[%clk 0:02:59]}  Bf5 {[%clk 0:03:02]} 8. Re1 {[%clk 0:02:57]}  Ne4 {[%clk 0:03:01]} 9. Nxe4 {[%clk 0:02:56]}  Bxe4 {[%clk 0:03:02]} 10. h4 {[%clk 0:02:52]}  Nd7 {[%clk 0:02:51]} 11. h5 {[%clk 0:02:51]}  d5 {[%clk 0:02:44]} 12. cxd5 {[%clk 0:02:49]}  cxd5 {[%clk 0:02:44]} 13. hxg6 {[%clk 0:02:44]}  hxg6 {[%clk 0:02:44]} 14. Bg5 {[%clk 0:02:43]}  Rc8 {[%clk 0:02:42]} 15. b3 {[%clk 0:02:40]}  Re8 {[%clk 0:02:40]} 16. Qd2 {[%clk 0:02:39]}  Nf6 {[%clk 0:02:33]} 17. Bh6 {[%clk 0:02:37]}  Qb6 {[%clk 0:02:09]} 18. Bxg7 {[%clk 0:02:30]}  Kxg7 {[%clk 0:02:09]} 19. Nh4 {[%clk 0:02:21]}  Bxg2 {[%clk 0:02:07]} 20. Kxg2 {[%clk 0:02:22]}  Ne4 {[%clk 0:02:05]} 21. Qd1 {[%clk 0:02:20]}  Rc3 {[%clk 0:01:34]} 22. e3 {[%clk 0:02:19]}  Rec8 {[%clk 0:01:34]} 23. Qg4 {[%clk 0:02:18]}  Rc2 {[%clk 0:01:26]} 24. Re2 {[%clk 0:02:13]}  Rxe2 {[%clk 0:01:22]} 25. Qxe2 {[%clk 0:02:14]}  Qf6 {[%clk 0:01:21]} 26. Rh1 {[%clk 0:02:12]}  Rh8 {[%clk 0:01:05]} 27. f4 {[%clk 0:02:09]}  g5 {[%clk 0:00:56]} 28. Qg4 {[%clk 0:02:07]}  Kf8 {[%clk 0:00:52]} 29. Qc8+ {[%clk 0:02:00]}  Kg7 {[%clk 0:00:49]} 30. Nf5+ {[%clk 0:01:59]}  Qxf5 {[%clk 0:00:47]} 31. Qxf5 {[%clk 0:01:57]}  Rxh1 {[%clk 0:00:47]} 32. Qe5+ {[%clk 0:01:54]}  f6 {[%clk 0:00:42]} 33. Qxe7+ {[%clk 0:01:53]} 1-0


[Site "https://www.chess.com"]

[Event "Titled Tuesday Blitz January 31 Late 2023"]
[White "Battlecruiser_Operational"]
[Black "Onslow, Alfie"]
[BlackFideId "436976"]
[WhiteElo "2419"]
[BlackElo "2157"]
[Result "0-1"]
[Round "10"]
[TimeControl "180+2"]
[Date "2023.01.31"]
[WhiteClock "0:00:03"]
[BlackClock "0:00:06"]

1. d4 {[%clk 0:02:59]}  d5 {[%clk 0:02:57]} 2. c4 {[%clk 0:02:59]}  e6 {[%clk 0:02:57]} 3. Nc3 {[%clk 0:02:59]}  c6 {[%clk 0:02:57]} 4. e4 {[%clk 0:02:56]}  dxe4 {[%clk 0:02:57]} 5. Nxe4 {[%clk 0:02:57]}  Bb4+ {[%clk 0:02:57]} 6. Bd2 {[%clk 0:02:58]}  Qxd4 {[%clk 0:02:57]} 7. Bxb4 {[%clk 0:02:56]}  Qxe4+ {[%clk 0:02:57]} 8. Ne2 {[%clk 0:02:56]}  Na6 {[%clk 0:02:56]} 9. Bf8 {[%clk 0:02:55]}  Qe5 {[%clk 0:02:30]} 10. Qd2 {[%clk 0:02:28]}  Bd7 {[%clk 0:02:16]} 11. Bd6 {[%clk 0:02:22]}  Qf6 {[%clk 0:02:03]} 12. O-O-O {[%clk 0:02:16]}  O-O-O {[%clk 0:01:48]} 13. f4 {[%clk 0:02:15]}  Nh6 {[%clk 0:01:39]} 14. Nc3 {[%clk 0:01:59]}  Nf5 {[%clk 0:01:20]} 15. Be5 {[%clk 0:01:56]}  Qh6 {[%clk 0:01:18]} 16. g4 {[%clk 0:01:49]}  f6 {[%clk 0:01:18]} 17. gxf5 {[%clk 0:01:20]}  fxe5 {[%clk 0:01:18]} 18. fxe5 {[%clk 0:01:18]}  Qxd2+ {[%clk 0:01:14]} 19. Rxd2 {[%clk 0:01:19]}  exf5 {[%clk 0:01:14]} 20. Rg1 {[%clk 0:01:17]}  g6 {[%clk 0:01:14]} 21. a3 {[%clk 0:01:12]}  Rhe8 {[%clk 0:01:09]} 22. Re2 {[%clk 0:01:05]}  Nc5 {[%clk 0:01:05]} 23. Kc2 {[%clk 0:01:02]}  Ne6 {[%clk 0:01:01]} 24. Rd2 {[%clk 0:00:53]}  Nc7 {[%clk 0:00:48]} 25. Re2 {[%clk 0:00:46]}  Be6 {[%clk 0:00:45]} 26. b3 {[%clk 0:00:45]}  Rd4 {[%clk 0:00:43]} 27. Bg2 {[%clk 0:00:36]}  Red8 {[%clk 0:00:37]} 28. Rge1 {[%clk 0:00:29]}  a5 {[%clk 0:00:37]} 29. Rd1 {[%clk 0:00:26]}  Rxd1 {[%clk 0:00:34]} 30. Nxd1 {[%clk 0:00:27]}  a4 {[%clk 0:00:33]} 31. Nb2 {[%clk 0:00:15]}  axb3+ {[%clk 0:00:31]} 32. Kxb3 {[%clk 0:00:16]}  Na6 {[%clk 0:00:31]} 33. h4 {[%clk 0:00:13]}  Rd4 {[%clk 0:00:26]} 34. h5 {[%clk 0:00:12]}  Rh4 {[%clk 0:00:22]} 35. Bf3 {[%clk 0:00:11]}  g5 {[%clk 0:00:19]} 36. Kc2 {[%clk 0:00:07]}  g4 {[%clk 0:00:19]} 37. Bg2 {[%clk 0:00:07]}  Nc5 {[%clk 0:00:17]} 38. Rd2 {[%clk 0:00:05]}  Rxh5 {[%clk 0:00:16]} 39. Nd3 {[%clk 0:00:05]}  Nxd3 {[%clk 0:00:15]} 40. Kxd3 {[%clk 0:00:06]}  f4 {[%clk 0:00:13]} 41. Ke4 {[%clk 0:00:06]}  f3 {[%clk 0:00:12]} 42. Bf1 {[%clk 0:00:06]}  Rh1 {[%clk 0:00:11]} 43. Bd3 {[%clk 0:00:06]}  h5 {[%clk 0:00:08]} 44. Kf4 {[%clk 0:00:06]}  Rg1 {[%clk 0:00:06]} 45. c5 {[%clk 0:00:06]}  Rg2 {[%clk 0:00:06]} 46. Rd1 {[%clk 0:00:05]}  f2 {[%clk 0:00:06]} 47. Bf1 {[%clk 0:00:01]}  Rg1 {[%clk 0:00:06]} 48. Ke3 {[%clk 0:00:01]}  Bc4 {[%clk 0:00:05]} 49. Kxf2 {[%clk 0:00:01]}  Rxf1+ {[%clk 0:00:06]} 50. Rxf1 {[%clk 0:00:02]}  Bxf1 {[%clk 0:00:06]} 51. Kxf1 {[%clk 0:00:03]}  Kd7 {[%clk 0:00:06]} 0-1


[Site "https://www.chess.com"]

[Event "Titled Tuesday Blitz January 31 Late 2023"]
[White "Buchenau, Frank"]
[Black "rikchessmx"]
[WhiteFideId "4604350"]
[WhiteElo "2222"]
[BlackElo "2287"]
[Result "1-0"]
[Round "10"]
[TimeControl "180+2"]
[Date "2023.01.31"]
[WhiteClock "0:01:35"]
[BlackClock "0:00:19"]

1. e4 {[%clk 0:02:59]}  c5 {[%clk 0:02:57]} 2. Nf3 {[%clk 0:02:59]}  e6 {[%clk 0:02:58]} 3. d4 {[%clk 0:02:58]}  cxd4 {[%clk 0:02:55]} 4. Nxd4 {[%clk 0:02:59]}  a6 {[%clk 0:02:55]} 5. Bd3 {[%clk 0:02:58]}  Nf6 {[%clk 0:02:55]} 6. O-O {[%clk 0:02:54]}  Qc7 {[%clk 0:02:40]} 7. Qe2 {[%clk 0:02:53]}  d6 {[%clk 0:02:39]} 8. f4 {[%clk 0:02:52]}  Nbd7 {[%clk 0:02:38]} 9. c4 {[%clk 0:02:51]}  b6 {[%clk 0:02:36]} 10. Nc3 {[%clk 0:02:51]}  Bb7 {[%clk 0:02:16]} 11. Bd2 {[%clk 0:02:51]}  h5 {[%clk 0:02:13]} 12. b4 {[%clk 0:02:49]}  g6 {[%clk 0:01:50]} 13. Rac1 {[%clk 0:02:48]}  Bg7 {[%clk 0:01:49]} 14. f5 {[%clk 0:02:35]}  gxf5 {[%clk 0:01:34]} 15. exf5 {[%clk 0:02:33]}  e5 {[%clk 0:01:33]} 16. Nd5 {[%clk 0:02:29]}  Qd8 {[%clk 0:01:28]} 17. Bg5 {[%clk 0:02:21]}  Qb8 {[%clk 0:01:20]} 18. Ne6 {[%clk 0:02:15]}  fxe6 {[%clk 0:01:16]} 19. fxe6 {[%clk 0:02:15]}  Bxd5 {[%clk 0:01:13]} 20. exd7+ {[%clk 0:02:14]}  Kxd7 {[%clk 0:01:09]} 21. cxd5 {[%clk 0:02:12]}  Rf8 {[%clk 0:01:06]} 22. Bf5+ {[%clk 0:02:06]}  Ke8 {[%clk 0:00:35]} 23. Rc8+ {[%clk 0:01:55]}  Qxc8 {[%clk 0:00:35]} 24. Bxc8 {[%clk 0:01:55]}  Rxc8 {[%clk 0:00:34]} 25. Qxa6 {[%clk 0:01:54]}  Rd8 {[%clk 0:00:24]} 26. Qxb6 {[%clk 0:01:49]}  Rd7 {[%clk 0:00:19]} 27. Qc6 {[%clk 0:01:35]} 1-0


[Site "https://www.chess.com"]

[Event "Titled Tuesday Blitz January 31 Late 2023"]
[White "Bon, Michael"]
[Black "Corredor Castellanos, Camilo"]
[WhiteFideId "620696"]
[BlackFideId "4425871"]
[WhiteElo "2394"]
[BlackElo "1957"]
[Result "1-0"]
[Round "10"]
[TimeControl "180+2"]
[Date "2023.01.31"]
[WhiteClock "0:00:50"]
[BlackClock "0:01:46"]

1. e4 {[%clk 0:02:56]}  c5 {[%clk 0:03:00]} 2. Nf3 {[%clk 0:02:55]}  d6 {[%clk 0:03:00]} 3. d4 {[%clk 0:02:56]}  cxd4 {[%clk 0:03:01]} 4. Nxd4 {[%clk 0:02:57]}  Nf6 {[%clk 0:03:02]} 5. Nc3 {[%clk 0:02:57]}  a6 {[%clk 0:03:02]} 6. Bg5 {[%clk 0:02:57]}  Nbd7 {[%clk 0:03:01]} 7. f4 {[%clk 0:02:51]}  Qb6 {[%clk 0:03:00]} 8. Qd2 {[%clk 0:02:46]}  Qxb2 {[%clk 0:03:00]} 9. Nb3 {[%clk 0:02:46]}  Qa3 {[%clk 0:02:58]} 10. Bxf6 {[%clk 0:02:35]}  Nxf6 {[%clk 0:02:56]} 11. e5 {[%clk 0:02:35]}  Nd7 {[%clk 0:02:49]} 12. Nd5 {[%clk 0:02:33]}  Kd8 {[%clk 0:02:46]} 13. Be2 {[%clk 0:02:08]}  e6 {[%clk 0:02:46]} 14. Ne3 {[%clk 0:02:08]}  d5 {[%clk 0:02:46]} 15. O-O {[%clk 0:02:06]}  Be7 {[%clk 0:02:45]} 16. c4 {[%clk 0:02:04]}  dxc4 {[%clk 0:02:38]} 17. Nxc4 {[%clk 0:02:00]}  Qb4 {[%clk 0:02:39]} 18. Qc2 {[%clk 0:01:52]}  b5 {[%clk 0:02:37]} 19. Nca5 {[%clk 0:01:45]}  Ke8 {[%clk 0:02:31]} 20. Nc6 {[%clk 0:01:45]}  Qa3 {[%clk 0:02:29]} 21. Rad1 {[%clk 0:01:37]}  h5 {[%clk 0:02:20]} 22. Rf3 {[%clk 0:01:25]}  h4 {[%clk 0:02:18]} 23. Rc3 {[%clk 0:01:19]}  Qa4 {[%clk 0:02:13]} 24. Nxe7 {[%clk 0:01:04]}  Kxe7 {[%clk 0:02:12]} 25. Rd4 {[%clk 0:01:04]}  b4 {[%clk 0:02:01]} 26. Rc7 {[%clk 0:01:04]}  h3 {[%clk 0:01:59]} 27. Bf3 {[%clk 0:00:58]}  Qb5 {[%clk 0:01:47]} 28. Bxa8 {[%clk 0:00:53]}  hxg2 {[%clk 0:01:47]} 29. Bxg2 {[%clk 0:00:53]}  Qb6 {[%clk 0:01:46]} 30. Rxc8 {[%clk 0:00:50]} 1-0


[Site "https://www.chess.com"]